[Event "The Elitserien 2024/25: round 1 - 3"]
[Site "Scandic Infra City, Kanalvagen 10, Upplands Vasby, Sweden"]
[Date "2024.10.05"]
[Round "2.21"]
[White "Religa, Marek"]
[Black "Lindberg, Bengt"]
[Result "1/2-1/2"]
[TimeControl "90 minutes for 40 moves + 30 minutes for the rest of the game + 30 seconds per move from move one."]
[BlackTitle "IM"]
[WhiteFideId "1750208"]
[BlackFideId "1700359"]
[WhiteElo "2224"]
[BlackElo "2337"]

1. e4 {[%clk 01:29:38]} {[%emt 00:01:22]} c5 {[%clk 01:30:44]} {[%emt
00:00:16]} 2. Nc3 {[%clk 01:29:30]} {[%emt 00:00:39]} Nc6 {[%clk 01:30:55]}
{[%emt 00:00:17]} 3. Bb5 {[%clk 01:29:54]} {[%emt 00:00:07]} Nd4 {[%clk
01:30:48]} {[%emt 00:00:37]} 4. Nf3 {[%clk 01:29:54]} {[%emt 00:00:30]} e6
{[%clk 01:29:49]} {[%emt 00:01:29]} 5. O-O {[%clk 01:28:31]} {[%emt 00:01:53]}
a6 {[%clk 01:29:13]} {[%emt 00:01:07]} 6. Bd3 {[%clk 01:28:55]} {[%emt
00:00:05]} Nc6 {[%clk 01:28:57]} {[%emt 00:00:47]} 7. b3 {[%clk 01:26:20]}
{[%emt 00:03:05]} d6 {[%clk 01:25:43]} {[%emt 00:03:43]} 8. Bb2 {[%clk
01:26:39]} {[%emt 00:00:12]} Nf6 {[%clk 01:25:02]} {[%emt 00:01:10]} 9. Re1
{[%clk 01:26:20]} {[%emt 00:00:50]} e5 {[%clk 01:23:21]} {[%emt 00:02:10]} 10.
Nd5 {[%clk 01:24:20]} {[%emt 00:02:31]} Be7 {[%clk 01:23:13]} {[%emt 00:00:36]}
11. c3 {[%clk 01:23:34]} {[%emt 00:01:19]} O-O {[%clk 01:18:55]} {[%emt
00:04:48]} 12. Bc2 {[%clk 01:23:32]} {[%emt 00:00:32]} Bg4 {[%clk 01:14:23]}
{[%emt 00:05:01]} 13. h3 {[%clk 01:14:57]} {[%emt 00:09:05]} Bh5 {[%clk
01:14:02]} {[%emt 00:00:51]} 14. g4 {[%clk 01:12:03]} {[%emt 00:03:25]} Bg6
{[%clk 01:14:16]} {[%emt 00:00:15]} 15. Nh2 {[%clk 00:56:00]} {[%emt 00:16:34]}
Nxd5 {[%clk 00:58:49]} {[%emt 00:15:57]} 16. exd5 {[%clk 00:56:27]} {[%emt
00:00:02]} Nb8 {[%clk 00:58:59]} {[%emt 00:00:19]} 17. d4 {[%clk 00:54:58]}
{[%emt 00:02:00]} Bxc2 {[%clk 00:56:02]} {[%emt 00:03:27]} 18. Qxc2 {[%clk
00:55:25]} {[%emt 00:00:03]} exd4 {[%clk 00:56:03]} {[%emt 00:00:28]} 19. cxd4
{[%clk 00:55:50]} {[%emt 00:00:07]} cxd4 {[%clk 00:56:18]} {[%emt 00:00:13]} 20.
f4 {[%clk 00:46:36]} {[%emt 00:09:45]} Nd7 {[%clk 00:50:55]} {[%emt 00:05:53]}
21. g5 {[%clk 00:44:34]} {[%emt 00:02:32]} f6 {[%clk 00:48:27]} {[%emt
00:02:58]} 22. Qe4 {[%clk 00:35:04]} {[%emt 00:10:01]} Rf7 {[%clk 00:48:10]}
{[%emt 00:00:45]} 23. h4 {[%clk 00:35:30]} {[%emt 00:00:05]} Qf8 {[%clk
00:36:51]} {[%emt 00:11:48]} 24. Bxd4 {[%clk 00:33:06]} {[%emt 00:02:54]} fxg5
{[%clk 00:33:37]} {[%emt 00:03:44]} 25. fxg5 {[%clk 00:32:57]} {[%emt
00:00:39]} Ne5 {[%clk 00:27:48]} {[%emt 00:06:19]} 26. Rf1 {[%clk 00:31:53]}
{[%emt 00:01:35]} Re8 {[%clk 00:27:48]} {[%emt 00:00:30]} 27. Rxf7 {[%clk
00:31:25]} {[%emt 00:00:58]} Qxf7 {[%clk 00:25:19]} {[%emt 00:02:58]} 28. Bxe5
{[%clk 00:31:11]} {[%emt 00:00:45]} dxe5 {[%clk 00:23:25]} {[%emt 00:02:23]} 29.
Rf1 {[%clk 00:30:25]} {[%emt 00:01:16]} Bc5+ {[%clk 00:23:44]} {[%emt
00:00:10]} 30. Kg2 {[%clk 00:28:10]} {[%emt 00:02:46]} Qd7 {[%clk 00:21:55]}
{[%emt 00:02:19]} 31. Rf5 {[%clk 00:23:45]} {[%emt 00:04:56]} Qc7 {[%clk
00:19:10]} {[%emt 00:03:13]} 32. Ng4 {[%clk 00:21:17]} {[%emt 00:02:59]} Bd4
{[%clk 00:17:10]} {[%emt 00:02:30]} 33. h5 {[%clk 00:17:27]} {[%emt 00:04:21]}
Qc1 {[%clk 00:08:37]} {[%emt 00:09:02]} 34. d6 {[%clk 00:14:24]} {[%emt
00:03:34]} Qc6 {[%clk 00:07:01]} {[%emt 00:02:05]} 35. Qxc6 {[%clk 00:14:17]}
{[%emt 00:00:37]} bxc6 {[%clk 00:07:29]} {[%emt 00:00:03]} 36. Nxe5 {[%clk
00:07:16]} {[%emt 00:07:30]} Bxe5 {[%clk 00:07:46]} {[%emt 00:00:13]} 37. d7
{[%clk 00:07:31]} {[%emt 00:00:17]} Rd8 {[%clk 00:08:10]} {[%emt 00:00:04]} 38.
Rxe5 {[%clk 00:07:59]} {[%emt 00:00:03]} Rxd7 {[%clk 00:08:37]} {[%emt
00:00:04]} 39. Ra5 {[%clk 00:07:37]} {[%emt 00:00:52]} Ra7 {[%clk 00:08:42]}
{[%emt 00:00:24]} 40. Rc5 {[%clk 00:07:56]} {[%emt 00:00:11]} Rc7 {[%clk
00:08:59]} {[%emt 00:00:13]} 41. Ra5 {[%clk 00:08:09]} {[%emt 00:00:17]} Ra7
{[%clk 00:09:23]} {[%emt 00:00:04]} 42. Kf3 {[%clk 00:05:03]} {[%emt 00:03:36]}
Kf7 {[%clk 00:09:04]} {[%emt 00:00:50]} 43. Rc5 {[%clk 00:04:24]} {[%emt
00:01:10]} Rc7 {[%clk 00:09:23]} {[%emt 00:00:09]} 44. Ra5 {[%clk 00:04:52]}
{[%emt 00:00:03]} Ra7 {[%clk 00:09:45]} {[%emt 00:00:08]} 45. Ke4 {[%clk
00:05:10]} {[%emt 00:00:12]} Ke6 {[%clk 00:10:08]} {[%emt 00:00:06]} 46. Kd4
{[%clk 00:03:54]} {[%emt 00:01:47]} Kd6 {[%clk 00:10:27]} {[%emt 00:00:10]} 47.
b4 {[%clk 00:19:50]} {[%emt 00:14:36]} Rb7 {[%clk 00:20:51]} {[%emt 00:20:05]}
48. Kc4 {[%clk 00:19:14]} {[%emt 00:01:06]} Rb5 {[%clk 00:17:10]} {[%emt
00:04:11]} 1/2-1/2

[Event "The Elitserien 2024/25: round 1 - 3"]
[Site "Scandic Infra City, Kanalvagen 10, Upplands Vasby, Sweden"]
[Date "2024.10.05"]
[Round "2.22"]
[White "Rydstrom, Tom"]
[Black "Persson, Andreas"]
[Result "1-0"]
[TimeControl "90 minutes for 40 moves + 30 minutes for the rest of the game + 30 seconds per move from move one."]
[WhiteTitle "FM"]
[BlackTitle "CM"]
[WhiteFideId "1714830"]
[BlackFideId "1707957"]
[WhiteElo "2274"]
[BlackElo "2173"]

1. e4 {[%clk 01:26:10]} {[%emt 00:04:49]} c6 {[%clk 01:30:37]} {[%emt
00:00:24]} 2. d4 {[%clk 01:25:29]} {[%emt 00:01:11]} d5 {[%clk 01:30:52]}
{[%emt 00:00:14]} 3. e5 {[%clk 01:25:55]} {[%emt 00:00:05]} c5 {[%clk
01:30:51]} {[%emt 00:00:30]} 4. dxc5 {[%clk 01:26:16]} {[%emt 00:00:08]} e6
{[%clk 01:31:01]} {[%emt 00:00:20]} 5. a3 {[%clk 01:26:32]} {[%emt 00:00:15]}
Bxc5 {[%clk 01:31:06]} {[%emt 00:00:25]} 6. Nf3 {[%clk 01:26:53]} {[%emt
00:00:10]} f6 {[%clk 01:26:18]} {[%emt 00:05:18]} 7. b4 {[%clk 01:27:06]}
{[%emt 00:00:16]} Be7 {[%clk 01:25:35]} {[%emt 00:01:13]} 8. Bb2 {[%clk
01:27:30]} {[%emt 00:00:06]} a5 {[%clk 01:24:07]} {[%emt 00:01:57]} 9. b5
{[%clk 01:27:52]} {[%emt 00:00:08]} Nd7 {[%clk 01:24:08]} {[%emt 00:00:30]} 10.
c4 {[%clk 01:27:05]} {[%emt 00:01:18]} dxc4 {[%clk 01:18:03]} {[%emt 00:06:34]}
11. Bxc4 {[%clk 01:26:09]} {[%emt 00:01:26]} Nxe5 {[%clk 01:14:11]} {[%emt
00:04:23]} 12. Qxd8+ {[%clk 01:25:33]} {[%emt 00:01:05]} Bxd8 {[%clk 01:14:28]}
{[%emt 00:00:13]} 13. Nxe5 {[%clk 01:25:45]} {[%emt 00:00:19]} fxe5 {[%clk
01:14:51]} {[%emt 00:00:06]} 14. O-O {[%clk 01:23:13]} {[%emt 00:03:04]} Nh6
{[%clk 01:09:17]} {[%emt 00:06:03]} 15. Bxe5 {[%clk 01:17:33]} {[%emt
00:06:09]} O-O {[%clk 00:59:56]} {[%emt 00:09:51]} 16. Nd2 {[%clk 01:16:10]}
{[%emt 00:01:52]} Ng4 {[%clk 00:56:26]} {[%emt 00:04:01]} 17. Bd6 {[%clk
01:14:26]} {[%emt 00:02:15]} Bf6 {[%clk 00:42:13]} {[%emt 00:14:43]} 18. Rad1
{[%clk 01:12:00]} {[%emt 00:02:56]} Re8 {[%clk 00:36:48]} {[%emt 00:05:55]} 19.
Ne4 {[%clk 01:09:26]} {[%emt 00:03:04]} Bd8 {[%clk 00:29:41]} {[%emt 00:07:36]}
20. Rfe1 {[%clk 01:04:14]} {[%emt 00:05:43]} h6 {[%clk 00:28:44]} {[%emt
00:01:27]} 21. Bg3 {[%clk 00:57:49]} {[%emt 00:06:55]} Be7 {[%clk 00:23:13]}
{[%emt 00:06:01]} 22. Nd6 {[%clk 00:57:55]} {[%emt 00:00:24]} Bxd6 {[%clk
00:23:31]} {[%emt 00:00:12]} 23. Rxd6 {[%clk 00:58:19]} {[%emt 00:00:06]} Kf7
{[%clk 00:23:30]} {[%emt 00:00:31]} 24. a4 {[%clk 00:56:28]} {[%emt 00:02:21]}
Nf6 {[%clk 00:22:39]} {[%emt 00:01:21]} 25. Be5 {[%clk 00:54:36]} {[%emt
00:02:22]} Nd7 {[%clk 00:18:45]} {[%emt 00:04:23]} 26. Bd4 {[%clk 00:54:30]}
{[%emt 00:00:37]} Nf8 {[%clk 00:18:49]} {[%emt 00:00:26]} 27. f4 {[%clk
00:53:03]} {[%emt 00:01:58]} g6 {[%clk 00:13:09]} {[%emt 00:06:09]} 28. g4
{[%clk 00:53:26]} {[%emt 00:00:07]} Re7 {[%clk 00:09:34]} {[%emt 00:04:05]} 29.
f5 {[%clk 00:52:26]} {[%emt 00:01:30]} gxf5 {[%clk 00:07:47]} {[%emt 00:02:17]}
30. gxf5 {[%clk 00:52:22]} {[%emt 00:00:35]} Ke8 {[%clk 00:06:34]} {[%emt
00:01:42]} 31. fxe6 {[%clk 00:51:37]} {[%emt 00:01:15]} Rc7 {[%clk 00:05:34]}
{[%emt 00:01:30]} 32. Bf6 {[%clk 00:51:54]} {[%emt 00:00:13]} 1-0

[Event "The Elitserien 2024/25: round 1 - 3"]
[Site "Scandic Infra City, Kanalvagen 10, Upplands Vasby, Sweden"]
[Date "2024.10.05"]
[Round "2.23"]
[White "Ostling, Hakan"]
[Black "Sevastianov, Andrii"]
[Result "1/2-1/2"]
[TimeControl "90 minutes for 40 moves + 30 minutes for the rest of the game + 30 seconds per move from move one."]
[WhiteFideId "1708635"]
[BlackFideId "1730240"]
[WhiteElo "2138"]
[BlackElo "2160"]

1. f4 {[%clk 01:30:28]} {[%emt 00:00:32]} c5 {[%clk 01:30:46]} {[%emt
00:00:14]} 2. Nf3 {[%clk 01:30:42]} {[%emt 00:00:15]} Nc6 {[%clk 01:31:00]}
{[%emt 00:00:16]} 3. d3 {[%clk 01:31:02]} {[%emt 00:00:11]} g6 {[%clk
01:31:16]} {[%emt 00:00:13]} 4. g3 {[%clk 01:31:14]} {[%emt 00:00:18]} Bg7
{[%clk 01:31:36]} {[%emt 00:00:10]} 5. Bg2 {[%clk 01:31:38]} {[%emt 00:00:06]}
d6 {[%clk 01:31:56]} {[%emt 00:00:10]} 6. O-O {[%clk 01:31:49]} {[%emt
00:00:19]} e5 {[%clk 01:31:28]} {[%emt 00:00:58]} 7. Nc3 {[%clk 01:30:44]}
{[%emt 00:01:35]} Nge7 {[%clk 01:31:32]} {[%emt 00:00:25]} 8. e4 {[%clk
01:30:39]} {[%emt 00:00:36]} O-O {[%clk 01:31:44]} {[%emt 00:00:17]} 9. Be3
{[%clk 01:17:01]} {[%emt 00:14:10]} Nd4 {[%clk 01:20:48]} {[%emt 00:11:25]} 10.
Qd2 {[%clk 01:16:01]} {[%emt 00:01:30]} Bg4 {[%clk 01:16:17]} {[%emt 00:05:01]}
11. Nh4 {[%clk 01:12:07]} {[%emt 00:04:25]} exf4 {[%clk 01:12:18]} {[%emt
00:04:28]} 12. Rxf4 {[%clk 01:03:55]} Qd7 {[%clk 01:04:57]} {[%emt 00:16:35]}
13. Rf2 {[%clk 01:04:09]} {[%emt 00:00:15]} Bh3 {[%clk 01:02:04]} {[%emt
00:03:22]} 14. Bxh3 {[%clk 00:46:54]} {[%emt 00:17:46]} Qxh3 {[%clk 01:02:20]}
{[%emt 00:00:13]} 15. Ng2 {[%clk 00:46:05]} {[%emt 00:01:20]} Qd7 {[%clk
00:56:48]} {[%emt 00:06:02]} 16. Nf4 {[%clk 00:43:12]} {[%emt 00:03:24]} f5
{[%clk 00:52:27]} {[%emt 00:04:50]} 17. Raf1 {[%clk 00:40:36]} {[%emt
00:03:05]} fxe4 {[%clk 00:41:49]} {[%emt 00:11:08]} 18. dxe4 {[%clk 00:39:53]}
{[%emt 00:01:14]} Ne6 {[%clk 00:40:24]} {[%emt 00:01:55]} 19. Nfd5 {[%clk
00:38:54]} {[%emt 00:01:30]} Rxf2 {[%clk 00:39:02]} 20. Rxf2 {[%clk 00:39:11]}
{[%emt 00:02:04]} Rf8 {[%clk 00:39:17]} {[%emt 00:00:15]} 21. Nxe7+ {[%clk
00:38:03]} {[%emt 00:01:38]} Qxe7 {[%clk 00:39:36]} {[%emt 00:00:12]} 22. Nd5
{[%clk 00:38:21]} {[%emt 00:00:11]} Qe8 {[%clk 00:33:26]} {[%emt 00:06:39]} 23.
c3 {[%clk 00:37:05]} {[%emt 00:01:47]} Rxf2 {[%clk 00:29:30]} {[%emt 00:04:26]}
24. Qxf2 {[%clk 00:37:15]} {[%emt 00:00:20]} Qf7 {[%clk 00:29:34]} {[%emt
00:00:26]} 25. Kg2 {[%clk 00:34:59]} {[%emt 00:02:46]} Qxf2+ {[%clk 00:28:28]}
{[%emt 00:01:35]} 26. Kxf2 {[%clk 00:35:22]} {[%emt 00:00:08]} Kf7 {[%clk
00:28:33]} {[%emt 00:00:25]} 27. a4 {[%clk 00:34:39]} {[%emt 00:01:14]} Nd8
{[%clk 00:26:45]} {[%emt 00:02:17]} 28. Bf4 {[%clk 00:29:14]} {[%emt 00:05:56]}
Bf8 {[%clk 00:20:25]} {[%emt 00:06:49]} 29. Ke2 {[%clk 00:27:58]} {[%emt
00:01:46]} Ke6 {[%clk 00:18:00]} {[%emt 00:02:55]} 30. Nc7+ {[%clk 00:25:39]}
{[%emt 00:02:49]} Kd7 {[%clk 00:17:52]} {[%emt 00:00:38]} 31. Nd5 {[%clk
00:25:45]} {[%emt 00:00:24]} Bg7 {[%clk 00:17:22]} {[%emt 00:00:59]} 32. Bg5
{[%clk 00:24:13]} {[%emt 00:02:03]} Nc6 {[%clk 00:14:31]} {[%emt 00:03:21]} 33.
Nf6+ {[%clk 00:16:26]} {[%emt 00:08:17]} Bxf6 {[%clk 00:14:50]} {[%emt
00:00:11]} 34. Bxf6 {[%clk 00:16:54]} {[%emt 00:00:02]} a6 {[%clk 00:14:23]}
{[%emt 00:00:57]} 35. Kd3 {[%clk 00:16:10]} {[%emt 00:01:14]} Ke6 {[%clk
00:13:53]} {[%emt 00:01:00]} 36. Bg7 {[%clk 00:16:31]} {[%emt 00:00:08]}
1/2-1/2

[Event "The Elitserien 2024/25: round 1 - 3"]
[Site "Scandic Infra City, Kanalvagen 10, Upplands Vasby, Sweden"]
[Date "2024.10.05"]
[Round "2.24"]
[White "Lindborg, Patrik"]
[Black "Naslund, Mikael"]
[Result "1/2-1/2"]
[TimeControl "90 minutes for 40 moves + 30 minutes for the rest of the game + 30 seconds per move from move one."]
[BlackTitle "FM"]
[WhiteFideId "1707507"]
[BlackFideId "1708260"]
[WhiteElo "2124"]
[BlackElo "2107"]

1. d4 {[%clk 01:30:58]} {[%emt 00:00:03]} Nf6 {[%clk 01:30:38]} {[%emt
00:00:21]} 2. c4 {[%clk 01:31:17]} {[%emt 00:00:11]} e6 {[%clk 01:30:43]}
{[%emt 00:00:25]} 3. Nf3 {[%clk 01:31:24]} {[%emt 00:00:23]} d5 {[%clk
01:31:04]} {[%emt 00:00:08]} 4. Nc3 {[%clk 01:30:45]} {[%emt 00:01:09]} c5
{[%clk 01:29:46]} {[%emt 00:01:48]} 5. cxd5 {[%clk 01:30:02]} {[%emt 00:01:13]}
exd5 {[%clk 01:29:55]} {[%emt 00:00:22]} 6. g3 {[%clk 01:29:47]} {[%emt
00:00:46]} Nc6 {[%clk 01:29:53]} {[%emt 00:00:31]} 7. Bg2 {[%clk 01:30:06]}
{[%emt 00:00:11]} Be7 {[%clk 01:30:13]} {[%emt 00:00:10]} 8. O-O {[%clk
01:30:31]} {[%emt 00:00:05]} O-O {[%clk 01:30:38]} {[%emt 00:00:04]} 9. Bg5
{[%clk 01:28:22]} {[%emt 00:02:39]} c4 {[%clk 01:30:22]} {[%emt 00:00:47]} 10.
a4 {[%clk 01:11:47]} {[%emt 00:17:04]} h6 {[%emt 00:14:23]} 11. Bf4 {[%clk
01:09:12]} {[%emt 00:00:03]} a6 {[%clk 01:18:16]} {[%emt 00:01:47]} 12. Ne5
{[%clk 01:07:22]} {[%emt 00:02:19]} Bf5 {[%clk 01:15:36]} {[%emt 00:03:09]} 13.
Nxc6 {[%clk 00:54:52]} {[%emt 00:13:02]} bxc6 {[%clk 01:15:58]} {[%emt
00:00:07]} 14. a5 {[%clk 00:55:10]} {[%emt 00:00:12]} g5 {[%clk 01:02:58]}
{[%emt 00:13:29]} 15. Bd2 {[%clk 00:54:32]} {[%emt 00:01:07]} Rb8 {[%clk
01:01:11]} {[%emt 00:02:18]} 16. Na4 {[%clk 00:52:07]} {[%emt 00:02:55]} Re8
{[%clk 00:58:30]} {[%emt 00:03:12]} 17. Bc3 {[%clk 00:43:42]} {[%emt 00:08:54]}
Bf8 {[%clk 00:51:59]} {[%emt 00:07:01]} 18. Nc5 {[%clk 00:37:47]} {[%emt
00:06:26]} Qc8 {[%clk 00:50:34]} {[%emt 00:01:55]} 19. Re1 {[%clk 00:36:53]}
{[%emt 00:01:23]} Ne4 {[%clk 00:39:04]} {[%emt 00:12:01]} 20. Nxe4 {[%clk
00:30:43]} {[%emt 00:06:39]} Bxe4 {[%clk 00:39:13]} {[%emt 00:00:20]} 21. f3
{[%clk 00:29:42]} {[%emt 00:01:31]} Bf5 {[%clk 00:39:02]} {[%emt 00:00:41]} 22.
e4 {[%clk 00:29:21]} {[%emt 00:00:51]} Be6 {[%clk 00:37:36]} {[%emt 00:01:58]}
23. f4 {[%clk 00:26:09]} {[%emt 00:03:42]} dxe4 {[%clk 00:31:16]} {[%emt
00:06:51]} 24. Bxe4 {[%clk 00:24:14]} {[%emt 00:02:24]} Bd5 {[%clk 00:31:01]}
{[%emt 00:00:45]} 25. Bxd5 {[%clk 00:22:15]} {[%emt 00:02:28]} Rxe1+ {[%clk
00:27:22]} {[%emt 00:04:09]} 26. Qxe1 {[%clk 00:22:05]} {[%emt 00:00:41]} cxd5
{[%clk 00:27:45]} {[%emt 00:00:07]} 27. fxg5 {[%clk 00:20:30]} {[%emt
00:02:05]} hxg5 {[%clk 00:27:46]} {[%emt 00:00:28]} 28. Qe5 {[%clk 00:20:37]}
{[%emt 00:00:23]} Qd8 {[%clk 00:27:13]} {[%emt 00:01:02]} 29. Re1 {[%clk
00:17:03]} {[%emt 00:04:05]} Bg7 {[%clk 00:16:52]} {[%emt 00:10:51]} 30. Qf5
{[%clk 00:16:56]} {[%emt 00:00:37]} Rb7 {[%clk 00:16:32]} {[%emt 00:00:50]} 31.
Kg2 {[%clk 00:16:32]} {[%emt 00:00:55]} Re7 {[%clk 00:12:25]} {[%emt 00:04:36]}
32. Rxe7 {[%clk 00:12:47]} {[%emt 00:04:15]} Qxe7 {[%clk 00:12:49]} {[%emt
00:00:06]} 33. Qxd5 {[%clk 00:13:03]} {[%emt 00:00:13]} Qe2+ {[%clk 00:13:10]}
{[%emt 00:00:10]} 34. Kg1 {[%clk 00:12:56]} {[%emt 00:00:38]} Qe3+ {[%clk
00:08:50]} {[%emt 00:04:49]} 35. Kf1 {[%clk 00:12:23]} {[%emt 00:01:03]} Qd3+
{[%clk 00:09:10]} {[%emt 00:00:11]} 36. Kf2 {[%clk 00:06:27]} {[%emt 00:06:26]}
Qc2+ {[%clk 00:09:17]} {[%emt 00:00:22]} 37. Kg1 {[%clk 00:05:27]} {[%emt
00:01:30]} Qd1+ {[%clk 00:09:38]} {[%emt 00:00:09]} 38. Kf2 {[%clk 00:05:26]}
{[%emt 00:00:31]} Qc2+ {[%clk 00:10:01]} {[%emt 00:00:07]} 39. Kg1 {[%clk
00:05:50]} {[%emt 00:00:06]} Qd1+ {[%clk 00:10:26]} {[%emt 00:00:05]} 1/2-1/2

[Event "The Elitserien 2024/25: round 1 - 3"]
[Site "Scandic Infra City, Kanalvagen 10, Upplands Vasby, Sweden"]
[Date "2024.10.05"]
[Round "2.25"]
[White "Hellers, Ferdinand"]
[Black "Ernst, Sipke"]
[Result "0-1"]
[TimeControl "90 minutes for 40 moves + 30 minutes for the rest of the game + 30 seconds per move from move one."]
[WhiteTitle "GM"]
[BlackTitle "GM"]
[WhiteFideId "1700022"]
[BlackFideId "1004689"]
[WhiteElo "2589"]
[BlackElo "2509"]

1. e4 {[%clk 01:30:54]} {[%emt 00:00:04]} e5 {[%clk 01:30:48]} {[%emt
00:00:14]} 2. Nf3 {[%clk 01:31:11]} {[%emt 00:00:12]} Nc6 {[%clk 01:31:09]}
{[%emt 00:00:10]} 3. Bb5 {[%clk 01:31:28]} {[%emt 00:00:12]} a6 {[%clk
01:31:35]} {[%emt 00:00:05]} 4. Ba4 {[%clk 01:31:49]} {[%emt 00:00:09]} Nf6
{[%clk 01:32:00]} {[%emt 00:00:05]} 5. O-O {[%clk 01:31:55]} {[%emt 00:00:24]}
d6 {[%clk 01:31:14]} {[%emt 00:01:16]} 6. c3 {[%clk 01:30:40]} {[%emt
00:01:45]} Bd7 {[%clk 01:26:51]} {[%emt 00:04:54]} 7. d4 {[%clk 01:27:44]}
{[%emt 00:03:25]} Be7 {[%clk 01:18:47]} {[%emt 00:08:35]} 8. Re1 {[%clk
01:27:09]} {[%emt 00:01:05]} O-O {[%clk 01:17:08]} {[%emt 00:02:09]} 9. h3
{[%clk 01:26:09]} {[%emt 00:01:29]} Re8 {[%clk 01:13:32]} {[%emt 00:04:07]} 10.
d5 {[%clk 01:23:29]} {[%emt 00:03:09]} Na7 {[%clk 01:07:07]} {[%emt 00:06:55]}
11. c4 {[%clk 01:20:00]} {[%emt 00:03:59]} b5 {[%clk 00:59:53]} {[%emt
00:07:44]} 12. cxb5 {[%clk 01:14:49]} {[%emt 00:05:41]} axb5 {[%clk 01:00:07]}
{[%emt 00:00:16]} 13. Bb3 {[%clk 01:14:32]} {[%emt 00:00:47]} Nc8 {[%clk
00:59:05]} {[%emt 00:01:32]} 14. Na3 {[%clk 01:12:57]} {[%emt 00:02:06]} Nb6
{[%clk 00:55:51]} {[%emt 00:03:44]} 15. Qd3 {[%clk 01:11:33]} {[%emt 00:01:53]}
Na4 {[%clk 00:54:28]} {[%emt 00:01:54]} 16. Bxa4 {[%clk 00:52:12]} {[%emt
00:19:50]} bxa4 {[%clk 00:52:17]} {[%emt 00:02:41]} 17. Bd2 {[%clk 00:48:34]}
{[%emt 00:04:08]} c6 {[%clk 00:47:02]} {[%emt 00:05:45]} 18. dxc6 {[%clk
00:48:32]} {[%emt 00:00:33]} Bxc6 {[%clk 00:47:28]} {[%emt 00:00:05]} 19. Nc2
{[%clk 00:48:14]} {[%emt 00:00:48]} Bb7 {[%clk 00:43:03]} {[%emt 00:04:55]} 20.
Bg5 {[%clk 00:38:28]} {[%emt 00:10:15]} Bxe4 {[%clk 00:26:25]} {[%emt
00:17:08]} 21. Rxe4 {[%clk 00:37:33]} {[%emt 00:01:24]} Nxe4 {[%clk 00:26:38]}
{[%emt 00:00:18]} 22. Bxe7 {[%clk 00:37:47]} {[%emt 00:00:15]} Nc5 {[%clk
00:23:27]} {[%emt 00:03:42]} 23. Bxd8 {[%clk 00:36:21]} {[%emt 00:01:56]} Nxd3
{[%clk 00:23:52]} {[%emt 00:00:05]} 24. Bh4 {[%clk 00:34:10]} {[%emt 00:02:42]}
Rec8 {[%clk 00:21:29]} {[%emt 00:02:52]} 25. Ne3 {[%clk 00:33:46]} {[%emt
00:00:55]} f6 {[%clk 00:14:51]} {[%emt 00:07:08]} 26. Nd2 {[%clk 00:30:51]}
{[%emt 00:03:24]} Rc1+ {[%clk 00:11:45]} {[%emt 00:03:37]} 27. Rxc1 {[%clk
00:30:32]} {[%emt 00:00:49]} Nxc1 {[%clk 00:12:11]} {[%emt 00:00:05]} 28. Ndc4
{[%clk 00:28:43]} {[%emt 00:02:17]} Nxa2 {[%clk 00:09:34]} {[%emt 00:03:08]} 29.
Nxd6 {[%clk 00:28:31]} {[%emt 00:00:42]} Nc1 {[%clk 00:09:07]} {[%emt
00:00:57]} 30. f4 {[%clk 00:21:07]} {[%emt 00:07:54]} exf4 {[%clk 00:08:16]}
{[%emt 00:01:21]} 31. Nec4 {[%clk 00:21:28]} {[%emt 00:00:08]} Nd3 {[%clk
00:06:15]} {[%emt 00:02:32]} 32. Bf2 {[%clk 00:21:25]} {[%emt 00:00:32]} Nxb2
{[%clk 00:01:32]} {[%emt 00:05:14]} 33. Nxb2 {[%clk 00:21:45]} {[%emt
00:00:11]} a3 {[%clk 00:02:01]} {[%emt 00:00:01]} 34. Nbc4 {[%clk 00:21:38]}
{[%emt 00:00:35]} a2 {[%clk 00:02:26]} {[%emt 00:00:07]} 35. Bd4 {[%clk
00:22:03]} {[%emt 00:00:04]} a1=Q+ {[%clk 00:02:49]} {[%emt 00:00:07]} 36. Bxa1
{[%clk 00:22:28]} {[%emt 00:00:05]} Rxa1+ {[%clk 00:03:17]} {[%emt 00:00:02]}
37. Kf2 {[%clk 00:22:50]} {[%emt 00:00:08]} Rc1 {[%clk 00:02:50]} {[%emt
00:00:57]} 38. h4 {[%clk 00:02:14]} {[%emt 00:21:05]} Rc3 {[%clk 00:01:56]}
{[%emt 00:01:24]} 39. Nd2 {[%clk 00:01:34]} {[%emt 00:01:11]} Rd3 {[%clk
00:01:55]} {[%emt 00:00:32]} 40. N2e4 {[%clk 00:01:26]} {[%emt 00:00:37]} Rd5
{[%clk 00:00:50]} {[%emt 00:01:34]} 41. Kf3 {[%clk 00:25:02]} {[%emt 00:06:55]}
f5 {[%clk 00:27:37]} {[%emt 00:03:42]} 42. Kxf4 {[%clk 00:24:59]} {[%emt
00:00:32]} fxe4 {[%clk 00:28:00]} {[%emt 00:00:07]} 43. Nxe4 {[%clk 00:25:23]}
{[%emt 00:00:07]} Kf7 {[%clk 00:24:10]} {[%emt 00:04:20]} 44. g4 {[%clk
00:24:40]} {[%emt 00:01:12]} g6 {[%clk 00:18:52]} {[%emt 00:05:49]} 45. Ng3
{[%clk 00:15:39]} {[%emt 00:09:31]} Rd4+ {[%clk 00:19:14]} {[%emt 00:00:08]} 46.
Kf3 {[%clk 00:14:52]} {[%emt 00:01:17]} Ke6 {[%clk 00:19:03]} {[%emt 00:00:42]}
47. Ne4 {[%clk 00:15:11]} {[%emt 00:00:10]} Ke5 {[%clk 00:18:08]} {[%emt
00:01:25]} 0-1